[Event "Czech Open-E Teams 2022"]
[Site "Pardubice"]
[Date "2022.07.15"]
[Round "3.11"]
[White "Fryc, Miroslav"]
[Black "Chytilek, Roman"]
[Result "0-1"]
[ECO "B06"]
[WhiteElo "2169"]
[BlackElo "2317"]
[Annotator "ChessBase"]
[PlyCount "120"]
[EventDate "2022.07.14"]
[EventType "team-tourn"]
[EventCountry "CZE"]
[SourceTitle "playchess.com"]
[Source "ChessBase"]
[SourceQuality "1"]
[TimeControl "5400+30"]

1. e4 {[%emt 0:00:23]} g6 {[%emt 0:00:24]} 2. d4 {[%emt 0:00:30]} Bg7 {[%emt 0:00:05]} 3. Nc3 {[%emt 0:00:47]} c6 {[%emt 0:01:07]} 4. Be2 {[%emt 0:02:29]} d6 {[%emt 0:07:58]} 5. h3 {[%emt 0:08:27]} Nf6 {[%emt 0:03:48]} 6. Nf3 {[%emt 0:02:05]} O-O {[%emt 0:02:04]} 7. O-O {[%emt 0:00:12]} Nbd7 {[%emt 0:02:18]} 8. e5 {[%emt 0:06:57]} Ne8 {[%emt 0:02:32]} 9. Bf4 {[%emt 0:02:04]} dxe5 {[%emt 0:02:49]} 10. dxe5 {[%emt 0:02:39]} Nc7 {[%emt 0:00:37]} 11. Re1 {[%emt 0:05:51]} Ne6 {[%emt 0:18:28]} 12. Bg3 {[%emt 0:01:12]} b5 {[%emt 0:03:54]} 13. Qc1 {[%emt 0:07:35]} Qb6 {[%emt 0:09:48]} 14. Bf1 {[%emt 0:01:20]} a5 {[%emt 0:08:18]} 15. Ne4 {[%emt 0:02:47]} Ndc5 {[%emt 0:02:52]} 16. Qe3 {[%emt 0:03:35]} Na4 {[%emt 0:03:44]} 17. b3 {[%emt 0:16:07]} Qxe3 {[%emt 0:00:44]} 18. Rxe3 {[%emt 0:00:01]} Nb6 {[%emt 0:03:00]} 19. Rd1 {[%emt 0:10:09]} Nd5 {[%emt 0:09:31]} 20. Ree1 {[%emt 0:02:16]} b4 {[%emt 0:04:07]} 21. Bc4 {[%emt 0:06:53]} Bb7 {[%emt 0:00:49]} 22. Nd4 {[%emt 0:00:43]} Nxd4 {[%emt 0:04:57]} 23. Rxd4 {[%emt 0:00:03]} e6 {[%emt 0:01:01]} 24. Nc5 {[%emt 0:00:30]} Rfb8 {[%emt 0:00:50]} 25. Bh4 {[%emt 0:05:44]} h6 {[%emt 0:04:42]} 26. Nd7 {[%emt 0:07:19]} Re8 {[%emt 0:01:01]} 27. f4 {[%emt 0:01:38]} Ba6 {[%emt 0:01:40]} 28. Bxa6 {[%emt 0:01:50]} Rxa6 {[%emt 0:00:05]} 29. Rc4 {[%emt 0:00:14]} Rc8 {[%emt 0:00:58]} 30. Nc5 {[%emt 0:01:16]} Ra7 {[%emt 0:00:16]} 31. Bf2 {[%emt 0:00:50]} Re7 {[%emt 0:00:49]} 32. a4 Bf8 {[%emt 0:00:38]} 33. g3 {[%emt 0:01:09]} h5 {[%emt 0:00:24]} 34. h4 {[%emt 0:00:21]} Rec7 {[%emt 0:00:31]} 35. Ne4 {[%emt 0:00:38]} c5 {[%emt 0:00:34]} 36. Nf6+ {[%emt 0:01:19]} Nxf6 {[%emt 0:00:31]} 37. exf6 {[%emt 0:00:01]} Rd8 {[%emt 0:00:23]} 38. Re5 {[%emt 0:00:24]} Rd5 {[%emt 0:00:22]} 39. Kf1 {[%emt 0:00:52]} Bd6 {[%emt 0:00:11]} 40. Rg5 {[%emt 0:00:30]} Kf8 {[%emt 0:00:57]} 41. Ke2 {[%emt 0:00:05]} Ke8 {[%emt 0:00:28]} 42. Kf3 {[%emt 0:00:11]} Kd7 {[%emt 0:00:20]} 43. Ke4 {[%emt 0:00:17]} Kc6 {[%emt 0:00:31]} 44. Be3 {[%emt 0:00:31]} Bf8 {[%emt 0:00:50]} 45. Re5 {[%emt 0:00:33]} Bd6 {[%emt 0:00:08]} 46. Rg5 {[%emt 0:00:17]} Bf8 {[%emt 0:00:15]} 47. Re5 {[%emt 0:01:42]} Bd6 {[%emt 0:00:10]} 48. Rg5 {[%emt 0:00:19]} Bf8 {[%emt 0:00:31]} 49. c3 {[%emt 0:00:18]} Rf5 {[%emt 0:00:45]} 50. cxb4 {[%emt 0:00:13]} axb4 {[%emt 0:00:05]} 51. Rc2 {[%emt 0:01:06]} Rd7 {[%emt 0:01:10]} 52. Rxf5 {[%emt 0:00:31]} gxf5+ {[%emt 0:00:20]} 53. Kf3 {[%emt 0:00:19]} Rd3 {[%emt 0:00:23]} 54. Rb2 {[%emt 0:00:51]} c4 {[%emt 0:00:59]} 55. Ke2 {[%emt 0:00:11]} Rxb3 {[%emt 0:00:42]} 56. Rxb3 {[%emt 0:00:36]} cxb3 {[%emt 0:00:05]} 57. Kd2 {[%emt 0:00:46]} Bc5 {[%emt 0:00:49]} 58. Bxc5 {[%emt 0:00:17]} Kxc5 {[%emt 0:00:05]} 59. Kc1 {[%emt 0:00:03]} Kb6 {[%emt 0:00:21]} 60. Kb2 {[%emt 0:00:10]} Ka6 {[%emt 0:00:10]} 0-1

[Event "Czech Open-E Teams 2022"]
[Site "Pardubice"]
[Date "2022.07.15"]
[Round "3.12"]
[White "Vyskocil, Neklan"]
[Black "Galicek, Stanislav"]
[Result "1-0"]
[ECO "B53"]
[WhiteElo "2286"]
[BlackElo "2071"]
[Annotator "ChessBase"]
[PlyCount "74"]
[EventDate "2022.07.14"]
[EventType "team-tourn"]
[EventCountry "CZE"]
[SourceTitle "playchess.com"]
[Source "ChessBase"]
[SourceQuality "1"]
[TimeControl "5400+30"]

1. e4 {[%emt 0:03:36]} c5 {[%emt 0:00:07]} 2. Nf3 {[%emt 0:00:14]} d6 {[%emt 0:00:05]} 3. d4 {[%emt 0:01:09]} cxd4 {[%emt 0:00:07]} 4. Qxd4 {[%emt 0:00:21]} Nc6 {[%emt 0:00:48]} 5. Bb5 {[%emt 0:00:10]} Bd7 {[%emt 0:00:33]} 6. Bxc6 {[%emt 0:00:13]} Bxc6 {[%emt 0:00:26]} 7. Nc3 {[%emt 0:00:14]} Nf6 {[%emt 0:01:09]} 8. Bg5 {[%emt 0:00:17]} e6 {[%emt 0:00:37]} 9. O-O-O {[%emt 0:00:24]} Be7 {[%emt 0:00:32]} 10. Kb1 {[%emt 0:01:37]} O-O {[%emt 0:01:19]} 11. Qd3 {[%emt 0:00:31]} Qa5 {[%emt 0:08:39]} 12. h4 {[%emt 0:00:30]} Rfd8 {[%emt 0:06:38]} 13. Nd4 {[%emt 0:00:27]} Be8 {[%emt 0:02:30]} 14. f4 {[%emt 0:00:29]} a6 {[%emt 0:05:03]} 15. f5 {[%emt 0:00:50]} Bd7 {[%emt 0:07:50]} 16. g4 {[%emt 0:14:39]} Rac8 {[%emt 0:03:30]} 17. Rhg1 {[%emt 0:04:51]} Qb4 {[%emt 0:10:31]} 18. Bd2 {[%emt 0:30:23]} Qc4 {[%emt 0:03:50]} 19. g5 {[%emt 0:01:22]} Ne8 {[%emt 0:08:09]} 20. Qe3 {[%emt 0:07:57]} b5 {[%emt 0:05:12]} 21. fxe6 {[%emt 0:09:13]} fxe6 {[%emt 0:02:07]} 22. Rgf1 {[%emt 0:01:48]} Nc7 {[%emt 0:02:57]} 23. Nb3 {[%emt 0:07:41]} Rf8 {[%emt 0:03:20]} 24. Rxf8+ {[%emt 0:05:27]} Rxf8 {[%emt 0:01:31]} 25. a3 {[%emt 0:01:09]} Rf1 {[%emt 0:08:21]} 26. Rxf1 {[%emt 0:01:38]} Qxf1+ {[%emt 0:00:02]} 27. Ka2 {[%emt 0:00:05]} Qc4 {[%emt 0:03:56]} 28. Qa7 {[%emt 0:00:44]} Kf7 {[%emt 0:03:57]} 29. Be3 {[%emt 0:00:27]} Bd8 {[%emt 0:03:30]} 30. Qb8 {[%emt 0:02:42]} Ke7 {[%emt 0:02:37]} 31. Bd4 {[%emt 0:00:42]} e5 {[%emt 0:00:58]} 32. Bb6 {[%emt 0:00:36]} Be6 {[%emt 0:00:27]} 33. Qb7 b4 34. Bxc7 {[%emt 0:03:07]} Qxc7 {[%emt 0:04:14]} 35. Qxb4 {[%emt 0:00:10]} Qa7 {[%emt 0:00:59]} 36. Nd5+ {[%emt 0:00:41]} Bxd5 {[%emt 0:00:02]} 37. exd5 {[%emt 0:00:01]} a5 {[%emt 0:00:55]} 1-0

[Event "Czech Open-E Teams 2022"]
[Site "Pardubice"]
[Date "2022.07.15"]
[Round "3.13"]
[White "Stalmach, Richard"]
[Black "Marsalek, Zdenek"]
[Result "1-0"]
[ECO "D17"]
[WhiteElo "2363"]
[BlackElo "2195"]
[Annotator "ChessBase"]
[PlyCount "35"]
[EventDate "2022.07.14"]
[EventType "team-tourn"]
[EventCountry "CZE"]
[SourceTitle "playchess.com"]
[Source "ChessBase"]
[SourceQuality "1"]
[TimeControl "5400+30"]

1. d4 {[%emt 0:00:38]} d5 {[%emt 0:00:10]} 2. c4 {[%emt 0:00:03]} c6 {[%emt 0:00:09]} 3. Nc3 {[%emt 0:00:07]} Nf6 {[%emt 0:00:09]} 4. Nf3 {[%emt 0:00:10]} dxc4 {[%emt 0:00:12]} 5. a4 {[%emt 0:00:41]} Bf5 {[%emt 0:00:12]} 6. Ne5 {[%emt 0:01:21]} Nbd7 {[%emt 0:00:24]} 7. Nxc4 {[%emt 0:00:05]} Qc7 {[%emt 0:00:24]} 8. g3 {[%emt 0:00:12]} e5 {[%emt 0:00:19]} 9. dxe5 {[%emt 0:00:09]} Nxe5 {[%emt 0:00:11]} 10. Bf4 {[%emt 0:00:07]} Nfd7 {[%emt 0:00:22]} 11. Bg2 {[%emt 0:00:13]} f6 {[%emt 0:00:30]} 12. a5 {[%emt 0:17:32]} g5 {[%emt 0:05:37]} 13. Bxe5 {[%emt 0:02:35]} Nxe5 {[%emt 0:00:53]} 14. Nxe5 {[%emt 0:00:11]} fxe5 {[%emt 0:00:13]} 15. a6 {[%emt 0:01:08]} b6 {[%emt 0:00:26]} 16. Qc1 {[%emt 0:00:25]} O-O-O {[%emt 0:16:30]} 17. Qxg5 {[%emt 0:01:02]} Be6 {[%emt 0:00:44]} 18. Qf6 {[%emt 0:03:18]} 1-0

[Event "Czech Open-E Teams 2022"]
[Site "Pardubice"]
[Date "2022.07.15"]
[Round "3.14"]
[White "Vltavsky, Vladimir"]
[Black "Mica, Marek"]
[Result "0-1"]
[ECO "D37"]
[WhiteElo "2106"]
[BlackElo "2304"]
[Annotator "ChessBase"]
[PlyCount "58"]
[EventDate "2022.07.14"]
[EventType "team-tourn"]
[EventCountry "CZE"]
[SourceTitle "playchess.com"]
[Source "ChessBase"]
[SourceQuality "1"]
[TimeControl "5400+30"]

1. d4 {[%emt 0:02:27]} Nf6 {[%emt 0:00:10]} 2. Nf3 {[%emt 0:00:12]} e6 {[%emt 0:00:17]} 3. c4 {[%emt 0:01:29]} d5 {[%emt 0:00:21]} 4. Nc3 {[%emt 0:00:21]} dxc4 {[%emt 0:00:34]} 5. Qa4+ {[%emt 0:00:10]} c6 {[%emt 0:01:02]} 6. Qxc4 {[%emt 0:00:05]} b5 {[%emt 0:00:28]} 7. Qb3 {[%emt 0:00:49]} Nbd7 {[%emt 0:03:39]} 8. g3 {[%emt 0:08:10]} a6 {[%emt 0:02:25]} 9. Bg2 {[%emt 0:01:30]} Bb7 {[%emt 0:00:22]} 10. O-O {[%emt 0:05:37]} c5 {[%emt 0:01:47]} 11. Qd1 {[%emt 0:04:56]} Rc8 {[%emt 0:06:19]} 12. dxc5 {[%emt 0:07:11]} Bxc5 {[%emt 0:01:04]} 13. Nd2 {[%emt 0:00:30]} Bxg2 {[%emt 0:00:30]} 14. Kxg2 {[%emt 0:00:03]} Qb6 {[%emt 0:08:30]} 15. Nde4 {[%emt 0:01:13]} O-O {[%emt 0:03:16]} 16. Nxc5 {[%emt 0:01:33]} Nxc5 {[%emt 0:00:19]} 17. Be3 {[%emt 0:05:05]} Rfd8 {[%emt 0:02:17]} 18. Qe1 {[%emt 0:00:25]} b4 {[%emt 0:03:31]} 19. Nd1 {[%emt 0:00:06]} Qb7+ {[%emt 0:01:06]} 20. f3 {[%emt 0:01:01]} Na4 {[%emt 0:01:39]} 21. b3 {[%emt 0:09:34]} Nc3 {[%emt 0:03:18]} 22. Nxc3 {[%emt 0:05:10]} bxc3 {[%emt 0:00:23]} 23. Bg5 {[%emt 0:02:57]} Qb5 {[%emt 0:04:50]} 24. Bxf6 {[%emt 0:02:47]} Rd2 {[%emt 0:03:06]} 25. Rf2 {[%emt 0:00:07]} gxf6 {[%emt 0:00:37]} 26. Rc1 {[%emt 0:00:26]} Rcd8 {[%emt 0:00:40]} 27. e3 {[%emt 0:04:41]} Rxf2+ {[%emt 0:01:45]} 28. Kxf2 {[%emt 0:00:07]} Rd2+ {[%emt 0:00:07]} 29. Kg1 {[%emt 0:00:47]} Qd3 {[%emt 0:00:10]} 0-1

[Event "Czech Open-E Teams 2022"]
[Site "Pardubice"]
[Date "2022.07.15"]
[Round "3.15"]
[White "Frank, Adam"]
[Black "Hacha, Ales"]
[Result "1-0"]
[ECO "B00"]
[WhiteElo "2313"]
[BlackElo "2092"]
[Annotator "ChessBase"]
[PlyCount "67"]
[EventDate "2022.07.14"]
[EventType "team-tourn"]
[EventCountry "CZE"]
[SourceTitle "playchess.com"]
[Source "ChessBase"]
[SourceQuality "1"]
[TimeControl "5400+30"]

1. e4 {[%emt 0:00:02]} d6 {[%emt 0:01:23]} 2. d4 {[%emt 0:00:05]} c6 {[%emt 0:00:27]} 3. Nc3 {[%emt 0:01:07]} Qa5 {[%emt 0:00:27]} 4. Nf3 {[%emt 0:01:59]} Bg4 {[%emt 0:01:17]} 5. Be2 {[%emt 0:06:31]} Nf6 {[%emt 0:01:52]} 6. O-O {[%emt 0:00:07]} e6 {[%emt 0:03:56]} 7. h3 {[%emt 0:04:16]} Bh5 {[%emt 0:02:04]} 8. Bd2 {[%emt 0:01:27]} Qb6 {[%emt 0:05:12]} 9. e5 {[%emt 0:01:30]} Nd5 {[%emt 0:07:55]} 10. Na4 {[%emt 0:03:27]} Qd8 {[%emt 0:12:27]} 11. c4 {[%emt 0:00:58]} Nc7 {[%emt 0:05:35]} 12. Qb3 {[%emt 0:10:24]} Qc8 {[%emt 0:09:07]} 13. exd6 {[%emt 0:11:00]} Bxd6 {[%emt 0:03:08]} 14. Nc3 {[%emt 0:02:58]} O-O {[%emt 0:02:01]} 15. Ne4 {[%emt 0:00:10]} Ne8 {[%emt 0:07:53]} 16. Nxd6 {[%emt 0:02:53]} Nxd6 {[%emt 0:00:27]} 17. Bf4 {[%emt 0:00:05]} Ne4 {[%emt 0:04:06]} 18. Qe3 {[%emt 0:11:46]} Nf6 {[%emt 0:03:39]} 19. Bd6 {[%emt 0:01:44]} Re8 {[%emt 0:00:28]} 20. g4 {[%emt 0:01:08]} Bg6 {[%emt 0:00:11]} 21. Ne5 {[%emt 0:00:04]} Nfd7 {[%emt 0:05:46]} 22. h4 {[%emt 0:04:45]} Nxe5 {[%emt 0:01:00]} 23. dxe5 {[%emt 0:00:04]} h6 {[%emt 0:00:12]} 24. h5 {[%emt 0:01:43]} Bh7 {[%emt 0:00:15]} 25. g5 {[%emt 0:00:08]} hxg5 {[%emt 0:04:37]} 26. Qxg5 {[%emt 0:00:04]} Kh8 {[%emt 0:00:30]} 27. Be7 {[%emt 0:14:54]} Nd7 {[%emt 0:03:56]} 28. Rad1 {[%emt 0:00:14]} Nxe5 {[%emt 0:03:36]} 29. h6 {[%emt 0:00:04]} Ng6 {[%emt 0:00:50]} 30. Bf6 {[%emt 0:00:04]} Qc7 {[%emt 0:00:59]} 31. Bxg7+ {[%emt 0:00:09]} Kg8 {[%emt 0:00:03]} 32. f4 {[%emt 0:01:03]} Rad8 {[%emt 0:01:47]} 33. Bd4 {[%emt 0:08:24]} e5 {[%emt 0:03:18]} 34. Qf6 {[%emt 0:00:39]} 1-0

[Event "Czech Open-E Teams 2022"]
[Site "Pardubice"]
[Date "2022.07.15"]
[Round "3.16"]
[White "Duda, Antonin"]
[Black "Gnojek, Petr"]
[Result "1-0"]
[ECO "B07"]
[WhiteElo "2038"]
[BlackElo "2295"]
[Annotator "ChessBase"]
[PlyCount "73"]
[EventDate "2022.07.14"]
[EventType "team-tourn"]
[EventCountry "CZE"]
[SourceTitle "playchess.com"]
[Source "ChessBase"]
[SourceQuality "1"]
[TimeControl "5400+30"]

1. e4 d6 2. d4 Nf6 3. Nc3 g6 4. Be3 a6 5. a4 Bg7 6. Qd2 Nbd7 7. Bh6 Bxh6 8. Qxh6 e5 9. Nge2 Qe7 10. f3 b6 11. O-O-O Bb7 12. Kb1 O-O-O 13. Qe3 Kb8 14. Nc1 exd4 15. Qxd4 Ne5 16. Qb4 Qe6 17. Nb3 Rhe8 18. Be2 a5 19. Qd4 Nc6 20. Qd2 Nb4 21. Rhe1 d5 22. Bb5 Rf8 23. Nd4 Qe7 24. e5 Ne8 25. Na2 Nxa2 26. Kxa2 c5 27. Bxe8 Qxe8 28. e6 Qxa4+ 29. Kb1 Rc8 30. e7 Rfe8 31. Ne2 Rxe7 32. Nc3 Qe8 33. Qf4+ Ka8 34. Rxe7 Qxe7 35. Nxd5 Bxd5 36. Rxd5 Rd8 37. Qe4 1-0

[Event "Czech Open-E Teams 2022"]
[Site "Pardubice"]
[Date "2022.07.15"]
[Round "3.17"]
[White "Jirasek, Pavel"]
[Black "Svoboda, Vaclav"]
[Result "1-0"]
[ECO "A30"]
[WhiteElo "2290"]
[BlackElo "2397"]
[Annotator "ChessBase"]
[PlyCount "43"]
[EventDate "2022.07.14"]
[EventType "team-tourn"]
[EventCountry "CZE"]
[SourceTitle "playchess.com"]
[Source "ChessBase"]
[SourceQuality "1"]
[TimeControl "5400+30"]

1. c4 c5 2. Nf3 g6 3. g3 Bg7 4. Bg2 Nc6 5. O-O Nf6 6. d4 cxd4 7. Nxd4 O-O 8. Nc3 Qa5 9. Nb3 Qh5 10. e4 d6 11. Qxh5 Nxh5 12. c5 dxc5 13. Nxc5 Nd4 14. Bd2 b6 15. Nb3 Ba6 16. Rfd1 Rad8 17. Nxd4 Bxd4 18. Bh6 Ng7 19. Nd5 e5 20. Bg5 Ra8 21. Nc7 Be2 22. Rd2 1-0

[Event "Czech Open-E Teams 2022"]
[Site "Pardubice"]
[Date "2022.07.15"]
[Round "3.18"]
[White "Vyprachticky, David"]
[Black "Sedivy, Martin"]
[Result "1-0"]
[ECO "C55"]
[WhiteElo "2302"]
[BlackElo "2126"]
[Annotator "ChessBase"]
[PlyCount "137"]
[EventDate "2022.07.14"]
[EventType "team-tourn"]
[EventCountry "CZE"]
[SourceTitle "playchess.com"]
[Source "ChessBase"]
[SourceQuality "1"]
[TimeControl "5400+30"]

1. e4 {[%emt 0:00:08]} e5 {[%emt 0:00:09]} 2. Nf3 {[%emt 0:00:42]} Nc6 {[%emt 0:00:31]} 3. Bc4 {[%emt 0:01:34]} Nf6 {[%emt 0:00:13]} 4. d3 {[%emt 0:00:24]} Be7 {[%emt 0:02:23]} 5. O-O {[%emt 0:01:25]} O-O {[%emt 0:00:15]} 6. Re1 {[%emt 0:01:03]} d6 {[%emt 0:00:34]} 7. a4 {[%emt 0:00:37]} Be6 {[%emt 0:02:49]} 8. Na3 {[%emt 0:02:04]} Qd7 {[%emt 0:04:29]} 9. c3 {[%emt 0:01:21]} Rfe8 {[%emt 0:02:18]} 10. Bxe6 {[%emt 0:06:17]} fxe6 {[%emt 0:00:41]} 11. d4 {[%emt 0:00:23]} exd4 {[%emt 0:01:34]} 12. cxd4 {[%emt 0:00:50]} d5 {[%emt 0:00:53]} 13. Ne5 {[%emt 0:01:23]} Qc8 {[%emt 0:11:10]} 14. Nxc6 {[%emt 0:00:28]} bxc6 {[%emt 0:00:06]} 15. e5 {[%emt 0:00:48]} Nd7 {[%emt 0:00:18]} 16. Qg4 {[%emt 0:01:31]} Bf8 {[%emt 0:02:00]} 17. Bh6 {[%emt 0:03:27]} Kh8 {[%emt 0:00:41]} 18. Re3 {[%emt 0:01:47]} Nb6 {[%emt 0:02:00]} 19. Rg3 {[%emt 0:02:14]} Qd7 {[%emt 0:00:30]} 20. a5 {[%emt 0:01:05]} Nc4 {[%emt 0:01:21]} 21. Nxc4 {[%emt 0:01:56]} dxc4 {[%emt 0:00:07]} 22. Ra4 {[%emt 0:07:25]} Rab8 {[%emt 0:06:25]} 23. Rxc4 {[%emt 0:02:32]} Rxb2 {[%emt 0:00:37]} 24. h4 {[%emt 0:00:24]} Qf7 {[%emt 0:01:21]} 25. Be3 {[%emt 0:04:41]} c5 {[%emt 0:00:39]} 26. dxc5 {[%emt 0:00:42]} Qf5 {[%emt 0:05:03]} 27. Qd4 {[%emt 0:13:42]} Rbb8 {[%emt 0:10:53]} 28. Rf3 {[%emt 0:04:58]} Qb1+ {[%emt 0:03:08]} 29. Rc1 {[%emt 0:02:07]} Qa2 {[%emt 0:00:36]} 30. Rf7 {[%emt 0:01:30]} Red8 {[%emt 0:07:50]} 31. Qa1 {[%emt 0:02:42]} Qxa1 {[%emt 0:02:13]} 32. Rxa1 {[%emt 0:00:03]} Rbc8 {[%emt 0:00:20]} 33. c6 {[%emt 0:02:50]} a6 {[%emt 0:03:06]} 34. Rd7 {[%emt 0:02:38]} Bb4 {[%emt 0:02:45]} 35. Rad1 {[%emt 0:00:51]} Rf8 {[%emt 0:00:37]} 36. Bd2 {[%emt 0:02:27]} Bc5 {[%emt 0:00:29]} 37. Be1 {[%emt 0:01:17]} h6 {[%emt 0:01:26]} 38. Rc1 {[%emt 0:02:29]} Ba3 {[%emt 0:00:20]} 39. Rb1 {[%emt 0:00:55]} Rf5 {[%emt 0:00:42]} 40. Rb7 {[%emt 0:00:47]} Rxe5 {[%emt 0:00:44]} 41. Bc3 {[%emt 0:00:08]} Rc5 {[%emt 0:00:20]} 42. Bxg7+ {[%emt 0:02:13]} Kg8 {[%emt 0:00:01]} 43. Bxh6 {[%emt 0:00:26]} Rxc6 {[%emt 0:00:08]} 44. Rb3 {[%emt 0:00:30]} Bd6 {[%emt 0:01:13]} 45. f4 {[%emt 0:01:19]} Bc5+ {[%emt 0:04:33]} 46. Kf1 {[%emt 0:01:22]} Bf8 {[%emt 0:00:12]} 47. Rg3+ {[%emt 0:00:32]} Kh8 {[%emt 0:00:06]} 48. Bg7+ {[%emt 0:02:44]} Bxg7 {[%emt 0:00:06]} 49. Rgxg7 {[%emt 0:00:25]} Rc4 {[%emt 0:02:04]} 50. Rgf7 {[%emt 0:00:52]} Rc5 {[%emt 0:02:57]} 51. Kf2 {[%emt 0:01:14]} Rxa5 {[%emt 0:01:55]} 52. Rxc7 {[%emt 0:00:22]} Rxc7 {[%emt 0:04:17]} 53. Rxc7 {[%emt 0:00:07]} Rf5 {[%emt 0:00:12]} 54. g3 {[%emt 0:00:58]} a5 {[%emt 0:00:39]} 55. Ra7 {[%emt 0:00:31]} Rb5 {[%emt 0:00:33]} 56. Kf3 {[%emt 0:00:28]} e5 {[%emt 0:00:13]} 57. fxe5 {[%emt 0:00:51]} Rxe5 {[%emt 0:00:07]} 58. g4 {[%emt 0:00:09]} Kg8 {[%emt 0:00:14]} 59. g5 {[%emt 0:00:11]} Rb5 {[%emt 0:00:22]} 60. Kg4 Kh8 61. Kh5 {[%emt 0:00:16]} Kg8 {[%emt 0:04:01]} 62. Kh6 {[%emt 0:00:15]} Rb6+ {[%emt 0:00:27]} 63. g6 {[%emt 0:00:30]} Rb8 {[%emt 0:00:08]} 64. Rxa5 Kh8 {[%emt 0:00:15]} 65. h5 {[%emt 0:00:19]} Rc8 {[%emt 0:00:18]} 66. Kg5 {[%emt 0:00:06]} Rb8 {[%emt 0:00:07]} 67. h6 {[%emt 0:00:05]} Rc8 {[%emt 0:00:55]} 68. Rd5 {[%emt 0:00:08]} Rb8 {[%emt 0:00:22]} 69. h7 {[%emt 0:01:06]} 1-0

[Event "Czech Open-E Teams 2022"]
[Site "Pardubice"]
[Date "2022.07.15"]
[Round "3.19"]
[White "Flasar, Jaroslav"]
[Black "Vedral, Oldrich"]
[Result "1-0"]
[ECO "C55"]
[WhiteElo "2044"]
[BlackElo "2268"]
[Annotator "ChessBase"]
[PlyCount "87"]
[EventDate "2022.07.14"]
[EventType "team-tourn"]
[EventCountry "CZE"]
[SourceTitle "playchess.com"]
[Source "ChessBase"]
[SourceQuality "1"]
[TimeControl "5400+30"]

1. e4 {[%emt 0:00:20]} e5 {[%emt 0:00:47]} 2. Nf3 {[%emt 0:00:12]} Nc6 {[%emt 0:00:07]} 3. d4 {[%emt 0:00:05]} exd4 {[%emt 0:00:04]} 4. Bc4 {[%emt 0:00:03]} Nf6 {[%emt 0:00:06]} 5. e5 {[%emt 0:00:07]} d5 {[%emt 0:00:08]} 6. Bb5 {[%emt 0:00:10]} Ne4 {[%emt 0:00:08]} 7. Nxd4 {[%emt 0:00:05]} Bd7 {[%emt 0:00:10]} 8. Bxc6 {[%emt 0:00:06]} bxc6 {[%emt 0:00:04]} 9. O-O {[%emt 0:01:47]} Bc5 {[%emt 0:00:09]} 10. c3 {[%emt 0:02:35]} Bb6 {[%emt 0:03:42]} 11. f3 {[%emt 0:03:02]} Ng5 {[%emt 0:00:36]} 12. f4 {[%emt 0:00:15]} Ne4 {[%emt 0:00:17]} 13. Be3 {[%emt 0:01:07]} c5 {[%emt 0:02:15]} 14. Nc2 {[%emt 0:03:31]} Bc6 {[%emt 0:06:37]} 15. Qg4 {[%emt 0:02:54]} Qe7 {[%emt 0:08:25]} 16. b4 {[%emt 0:10:55]} cxb4 {[%emt 0:06:10]} 17. Bxb6 {[%emt 0:00:44]} axb6 {[%emt 0:00:13]} 18. cxb4 {[%emt 0:00:26]} O-O {[%emt 0:04:25]} 19. Qe2 {[%emt 0:05:03]} Ba4 {[%emt 0:06:20]} 20. a3 {[%emt 0:02:19]} f6 {[%emt 0:02:34]} 21. Ne3 {[%emt 0:01:14]} Qd7 {[%emt 0:08:21]} 22. Qa2 {[%emt 0:02:53]} fxe5 {[%emt 0:08:35]} 23. Qxd5+ {[%emt 0:03:09]} Qxd5 {[%emt 0:01:31]} 24. Nxd5 {[%emt 0:00:08]} Bb3 {[%emt 0:08:16]} 25. Ne7+ {[%emt 0:02:28]} Kh8 {[%emt 0:00:20]} 26. Rf3 {[%emt 0:01:57]} Rfd8 {[%emt 0:18:27]} 27. Nc3 {[%emt 0:02:06]} Nd2 {[%emt 0:00:47]} 28. Rh3 {[%emt 0:01:57]} exf4 {[%emt 0:03:36]} 29. Ng6+ {[%emt 0:01:42]} Kg8 {[%emt 0:00:01]} 30. Nxf4 {[%emt 0:00:11]} Rd4 {[%emt 0:00:31]} 31. Nfe2 {[%emt 0:00:52]} Rd7 {[%emt 0:05:18]} 32. Rg3 {[%emt 0:03:04]} c5 {[%emt 0:00:41]} 33. bxc5 {[%emt 0:00:45]} bxc5 {[%emt 0:00:01]} 34. Rg5 {[%emt 0:01:01]} c4 {[%emt 0:01:00]} 35. a4 {[%emt 0:00:28]} h6 {[%emt 0:00:47]} 36. Re5 {[%emt 0:01:06]} Kf7 {[%emt 0:01:01]} 37. a5 {[%emt 0:00:12]} Kf6 {[%emt 0:02:43]} 38. Rb5 {[%emt 0:00:30]} Ke6 {[%emt 0:01:28]} 39. Nf4+ {[%emt 0:01:10]} Kd6 {[%emt 0:00:37]} 40. a6 {[%emt 0:03:37]} Kc6 {[%emt 0:00:27]} 41. Nfd5 {[%emt 0:01:55]} Rda7 {[%emt 0:02:36]} 42. Nb4+ {[%emt 0:00:53]} Kc7 {[%emt 0:00:12]} 43. Rc5+ {[%emt 0:00:13]} Kb6 {[%emt 0:00:06]} 44. Rc6# 1-0

[Event "Czech Open-E Teams 2022"]
[Site "Pardubice"]
[Date "2022.07.15"]
[Round "3.20"]
[White "Cuhra, Martin"]
[Black "Ruda, Ondrej"]
[Result "1-0"]
[ECO "C51"]
[WhiteElo "2225"]
[BlackElo "2024"]
[Annotator "ChessBase"]
[PlyCount "37"]
[EventDate "2022.07.14"]
[EventType "team-tourn"]
[EventCountry "CZE"]
[SourceTitle "playchess.com"]
[Source "ChessBase"]
[SourceQuality "1"]
[TimeControl "5400+30"]

1. e4 {[%emt 0:00:03]} e5 {[%emt 0:00:42]} 2. Nf3 {[%emt 0:00:07]} Nc6 {[%emt 0:00:25]} 3. Bc4 {[%emt 0:00:44]} Bc5 {[%emt 0:00:33]} 4. b4 {[%emt 0:00:06]} Bxb4 {[%emt 0:00:11]} 5. c3 {[%emt 0:00:04]} Be7 {[%emt 0:03:43]} 6. d4 {[%emt 0:00:29]} d6 {[%emt 0:02:06]} 7. Qb3 {[%emt 0:09:47]} Na5 {[%emt 0:01:56]} 8. Bxf7+ {[%emt 0:04:25]} Kf8 {[%emt 0:00:07]} 9. Qa4 {[%emt 0:00:41]} Kxf7 {[%emt 0:08:52]} 10. Qxa5 {[%emt 0:00:43]} exd4 {[%emt 0:01:18]} 11. cxd4 {[%emt 0:05:07]} c5 {[%emt 0:03:15]} 12. Qd2 {[%emt 0:06:55]} cxd4 {[%emt 0:06:39]} 13. O-O {[%emt 0:09:27]} Nf6 {[%emt 0:13:36]} 14. e5 {[%emt 0:05:24]} dxe5 {[%emt 0:00:37]} 15. Nxe5+ {[%emt 0:00:09]} Kf8 {[%emt 0:00:29]} 16. Re1 {[%emt 0:01:04]} Bf5 {[%emt 0:06:06]} 17. Ba3 {[%emt 0:05:37]} Bxa3 {[%emt 0:21:32]} 18. Nxa3 {[%emt 0:00:20]} h6 {[%emt 0:00:43]} 19. Qf4 {[%emt 0:04:38]} 1-0